fUST/lending_fUST_20250630
["ID","MTS","AMOUNT","RATE_DAILY","PERIOD"]
[368602811,1751227843896,-460.0,0.00019161,2]
[368602812,1751227843906,-460.0,0.00019161,2]
[368602813,1751227843915,-460.0,0.00019162,2]
[368602814,1751227843926,-460.0,0.00019162,2]
[368602815,1751227843935,-460.0,0.00019162,2]
[368602816,1751227843945,-540.90249887,0.00019162,2]
[368602817,1751227843955,-518.65,0.00019162,2]
[368602818,1751227843965,-614.5,0.00019162,2]
[368602819,1751227843975,-460.0,0.00019162,2]
[368602820,1751227843984,-460.0,0.00019162,2]
[368602821,1751227843995,-460.0,0.00019162,2]
[368602822,1751227844005,-460.0,0.00019162,2]
[368602823,1751227844015,-1043.13,0.00019162,2]
[368602824,1751227844026,-581.11,0.00019162,2]
[368602825,1751227844035,-460.0,0.00019162,2]
[368602826,1751227844047,-460.0,0.00019162,2]
[368602827,1751227844061,-460.0,0.00019162,2]
[368602828,1751227844076,-727.91,0.00019162,2]
[368602829,1751227844091,-460.0,0.00019162,2]
[368602830,1751227844104,-1267.43,0.00019162,2]
[368602831,1751227844115,-460.0,0.00019162,2]
[368602832,1751227844128,-460.0,0.00019162,2]
[368602833,1751227844140,-460.0,0.00019162,2]
[368602834,1751227844153,-460.0,0.00019162,2]
[368602835,1751227844166,-460.0,0.00019162,2]
[368602836,1751227844178,-460.0,0.00019162,2]
[368602837,1751227844191,-460.0,0.00019162,2]
[368602838,1751227844206,-500.0,0.00019162,2]
[368602839,1751227844218,-651.75,0.00019163,2]
[368602840,1751227844232,-500.0,0.00019164,2]
[368602841,1751227844246,-500.0,0.00019177,2]
[368602842,1751227844258,-500.0,0.00019177,2]
[368602843,1751227844270,-500.0,0.00019177,2]
[368602844,1751227844284,-151.0,0.00019178,2]
[368602845,1751227844296,-935.351129,0.00019178,2]
[368602846,1751227844308,-55349.0902884,0.00019178,2]
[368602847,1751227844318,-341.84358271,0.00019202,2]
[368602848,1751227844329,-151.0,0.00019205,2]
[368602849,1751227844341,-4053.0,0.00019211,2]
[368602850,1751227844353,-500.0,0.00019211,2]
[368602851,1751227844365,-500.0,0.00019211,2]
[368602852,1751227844377,-500.0,0.00019211,2]
[368602853,1751227844390,-500.0,0.00019214,2]
[368602854,1751227844403,-500.0,0.00019214,2]
[368602855,1751227844417,-500.0,0.00019214,2]
[368602856,1751227844431,-314.0,0.00019227,2]
[368602857,1751227844444,-500.0,0.00019227,2]
[368602858,1751227844455,-500.0,0.00019227,2]
[368602859,1751227844466,-500.0,0.00019227,2]
[368602860,1751227844477,-151.0,0.00019233,2]
[368602861,1751227844488,-314.0,0.00019235,2]
[368602862,1751227844501,-151.0,0.0001926,2]
[368602863,1751227844515,-500.0,0.00019269,2]
[368602864,1751227844530,-500.0,0.00019269,2]
[368602865,1751227844543,-500.0,0.00019269,2]
[368602866,1751227844556,-1000.0,0.00019287,2]
[368602867,1751227844567,-1000.0,0.00019287,2]
[368602868,1751227844580,-1000.0,0.00019287,2]
[368602869,1751227844594,-1000.0,0.00019287,2]
[368602870,1751227844605,-1000.0,0.00019287,2]
[368602871,1751227844618,-1000.0,0.00019287,2]
[368602872,1751227844629,-638.95690601,0.00019287,2]
[368602873,1751227844640,-221.08082616,0.00019288,2]
[368602874,1751227844651,-160.0,0.00019303,3]
[368602875,1751227844662,-25000.0,0.00019311,2]
[368602876,1751227844673,-690.642,0.00019311,2]
[368602877,1751227844684,-500.0,0.00019311,2]
[368602878,1751227844696,-5000.0,0.00019311,2]
[368602879,1751227844707,-500.0,0.00019311,2]
[368602880,1751227844718,-151.0,0.00019311,2]
[368602881,1751227844729,-500.0,0.00019311,2]
[368602882,1751227844740,-151.0,0.00019311,2]
[368602883,1751227844752,-500.0,0.00019311,2]
[368602884,1751227844763,-207.4,0.00019311,2]
[368602885,1751227844774,-500.0,0.00019311,2]
[368602886,1751227844785,-291.5243871,0.00019311,2]
[368602887,1751227844795,-500.0,0.00019311,2]
[368602888,1751227844806,-500.0,0.00019311,2]
[368602889,1751227844818,-3906.52055875,0.00019311,2]
[368602890,1751227844829,-500.0,0.00019311,2]
[368602891,1751227844840,-500.0,0.00019311,2]
[368602892,1751227844851,-500.0,0.00019311,2]
[368602893,1751227844862,-500.0,0.00019311,2]
[368602894,1751227844873,-182.3598853,0.00019311,2]
[368602895,1751227844885,-500.0,0.00019311,2]
[368602896,1751227844897,-500.0,0.00019311,2]
[368602897,1751227844908,-500.0,0.00019311,2]
[368602898,1751227844921,-500.0,0.00019311,2]
[368602899,1751227844933,-500.0,0.00019311,2]
[368602900,1751227844945,-563.32945425,0.00019311,2]
[368602901,1751227844957,-500.0,0.00019312,2]
[368602902,1751227844969,-344.8429154,0.00019312,2]
[368602903,1751227844982,-500.0,0.00019312,2]
[368602904,1751227844994,-540.21084401,0.00019313,2]
[368602905,1751227845005,-500.0,0.00019317,2]
[368602906,1751227845016,-500.0,0.00019317,2]
[368602907,1751227845027,-500.0,0.00019317,2]
[368602908,1751227845038,-500.0,0.00019317,2]
[368602909,1751227845049,-500.84850324,0.00019317,2]
[368602910,1751227845062,-500.0,0.00019317,2]
[368602911,1751227845073,-540.73312332,0.00019317,2]
[368602912,1751227845086,-500.0,0.00019317,2]
[368602913,1751227845097,-230.0,0.00019317,2]
[368602914,1751227845109,-500.0,0.00019317,2]
[368602915,1751227845121,-206.08708153,0.00019328,2]
[368602916,1751227845133,-500.0,0.00019328,2]
[368602917,1751227845146,-500.0,0.00019328,2]
[368602918,1751227845158,-500.0,0.00019328,2]
[368602919,1751227845169,-500.0,0.00019328,2]
[368602920,1751227845181,-500.0,0.00019328,2]
[368602921,1751227845193,-500.0,0.00019328,2]
[368602922,1751227845204,-500.0,0.00019328,2]
[368602923,1751227845216,-500.0,0.00019328,2]
[368602924,1751227845228,-500.0,0.00019328,2]
[368602925,1751227845240,-473.53547489,0.00019328,2]
[368602926,1751227845252,-500.0,0.00019328,2]
[368602927,1751227845263,-500.0,0.00019328,2]
[368602928,1751227845275,-500.0,0.00019328,2]
[368602929,1751227845286,-500.0,0.00019328,2]
[368602930,1751227845296,-500.0,0.00019328,2]
[368602931,1751227845308,-500.0,0.00019328,2]
[368602932,1751227845319,-500.0,0.00019328,2]
[368602933,1751227845330,-500.0,0.00019328,2]
[368602934,1751227845342,-500.0,0.00019328,2]
[368602935,1751227845353,-500.0,0.00019328,2]
[368602936,1751227845364,-500.0,0.00019328,2]
[368602937,1751227845375,-500.0,0.00019328,2]
[368602938,1751227845387,-500.0,0.00019328,2]
[368602939,1751227845398,-500.0,0.00019328,2]
[368602940,1751227845409,-500.0,0.00019328,2]
[368602941,1751227845420,-500.0,0.00019328,2]
[368602942,1751227845431,-500.0,0.00019328,2]
[368602943,1751227845443,-500.0,0.00019328,2]
[368602944,1751227845454,-500.0,0.00019328,2]
[368602945,1751227845466,-500.0,0.00019328,2]
[368602946,1751227845477,-500.0,0.00019328,2]
[368602947,1751227845490,-500.0,0.00019328,2]
[368602948,1751227845502,-500.0,0.00019328,2]
[368602949,1751227845511,-500.0,0.00019328,2]
[368602950,1751227845521,-500.0,0.00019328,2]
[368602951,1751227845533,-500.0,0.00019328,2]
[368602952,1751227845543,-500.0,0.00019328,2]
[368602953,1751227845553,-500.0,0.00019328,2]
[368602954,1751227845562,-500.0,0.00019328,2]
[368602955,1751227845572,-500.0,0.00019328,2]
[368602956,1751227845583,-500.0,0.00019328,2]
[368602957,1751227845592,-500.0,0.00019328,2]
[368602958,1751227845601,-500.0,0.00019328,2]
[368602959,1751227845611,-500.0,0.00019328,2]
[368602962,1751227845621,-500.0,0.00019328,2]
[368602963,1751227845832,-600.0,0.00019328,2]
[368602964,1751227845844,-500.0,0.00019328,2]
[368602965,1751227845854,-100000.0,0.00019329,2]
[368602966,1751227845863,-957.11,0.00019356,2]
[368602967,1751227845873,-208.958565,0.00019356,2]
[368602968,1751227845882,-716.195754,0.00019366,2]
[368602969,1751227845891,-195.03929553,0.00019367,2]
[368602970,1751227845901,-501.18341451,0.00019367,2]
[368602971,1751227845910,-500.0,0.00019367,2]
[368602972,1751227845920,-500.0,0.00019367,2]
[368602973,1751227845930,-500.0,0.00019367,2]
[368602974,1751227845939,-160.0,0.00019369,2]
[368602975,1751227845949,-160.0,0.00019369,2]
[368602976,1751227845958,-837.1293463,0.00019369,2]
[368602977,1751227845967,-160.0,0.00019369,2]
[368602978,1751227845976,-12567.05932091,0.00019369,2]
[368602979,1751227845985,-230.30207649,0.00019369,2]
[368602980,1751227845994,-160.0,0.00019369,2]
[368602981,1751227846003,-213.82031328,0.00019369,2]
[368602982,1751227846012,-160.0,0.00019369,2]
[368602983,1751227846021,-847.31290578,0.00019369,2]
[368602984,1751227846031,-214.97967293,0.00019369,2]
[368602985,1751227846040,-160.0,0.00019369,2]
[368602986,1751227846049,-160.0,0.00019369,2]
[368602987,1751227846059,-160.0,0.00019374,2]
[368602988,1751227846068,-151.0,0.000194,2]
[368602989,1751227846077,-314.0,0.00019402,2]
[368602990,1751227846086,-2936.09252431,0.00019413,2]
[368602991,1751227846096,-742.6949969,0.00019421,2]
[368602992,1751227846105,-525.07,0.00019433,2]
[368602993,1751227846114,-579.06,0.00019433,2]
[368602994,1751227846123,-2172.33,0.00019433,2]
[368602995,1751227846133,-460.0,0.00019433,2]
[368602996,1751227846142,-460.0,0.00019433,2]
[368602997,1751227846152,-460.0,0.00019434,2]
[368602998,1751227846161,-3161.16,0.00019434,2]
[368602999,1751227846171,-2985.09,0.00019434,2]
[368603000,1751227846180,-573.76,0.00019434,2]
[368603001,1751227846189,-460.0,0.00019434,2]
[368603002,1751227846198,-649.15,0.00019434,2]
[368603003,1751227846207,-460.0,0.00019434,2]
[368603004,1751227846216,-957.11,0.00019434,2]
[368603005,1751227846226,-957.11,0.00019434,2]
[368603006,1751227846235,-4173.13,0.00019434,2]
[368603007,1751227846244,-3311.69,0.00019434,2]
[368603008,1751227846254,-3593.5,0.00019434,2]
[368603009,1751227846263,-494.09,0.00019434,2]
[368603010,1751227846272,-1876.75,0.00019434,2]
[368603011,1751227846281,-505.42,0.00019434,2]
[368603012,1751227846290,-545.51,0.00019434,2]
[368603013,1751227846299,-460.0,0.00019434,2]
[368603014,1751227846308,-460.0,0.00019434,2]
[368603015,1751227846318,-475.59879967,0.00019435,2]
[368603016,1751227846327,-460.0,0.00019435,2]
[368603017,1751227846337,-599.43,0.00019435,2]
[368603018,1751227846347,-460.0,0.00019435,2]
[368603019,1751227846356,-1315.02,0.00019435,2]
[368603020,1751227846365,-460.0,0.00019435,2]
[368603021,1751227846375,-814.59,0.00019435,2]
[368603022,1751227846384,-1050.34,0.00019435,2]
[368603023,1751227846394,-460.0,0.00019435,2]
[368603024,1751227846403,-460.0,0.00019435,2]
[368603025,1751227846412,-460.0,0.00019435,2]
[368603026,1751227846421,-460.0,0.00019435,2]
[368603027,1751227846431,-460.0,0.00019435,2]
[368603028,1751227846440,-460.0,0.00019435,2]
[368603029,1751227846449,-622.54,0.00019435,2]
[368603030,1751227846459,-615.91,0.00019435,2]
[368603031,1751227846468,-460.0,0.00019435,2]
[368603032,1751227846477,-622.23,0.00019435,2]
[368603033,1751227846486,-460.0,0.00019435,2]
[368603034,1751227846495,-460.0,0.00019435,2]
[368603035,1751227846505,-580.6,0.00019435,2]
[368603036,1751227846514,-1045.28,0.00019435,2]
[368603037,1751227846524,-966.73,0.00019435,2]
[368603038,1751227846534,-460.0,0.00019435,2]
[368603039,1751227846544,-460.0,0.00019435,2]
[368603040,1751227846553,-1694.13,0.00019435,2]
[368603041,1751227846563,-460.0,0.00019435,2]
[368603042,1751227846572,-471.76,0.00019435,2]
[368603043,1751227846583,-957.11,0.00019435,2]
[368603044,1751227846593,-957.11,0.00019435,2]
[368603045,1751227846602,-957.11,0.00019435,2]
[368603046,1751227846615,-957.11,0.00019435,2]
[368603047,1751227846625,-957.2939051,0.00019435,2]
[368603048,1751227846634,-4024.99,0.00019435,2]
[368603049,1751227846644,-460.0,0.00019435,2]
[368603050,1751227846653,-460.0,0.00019435,2]
[368603051,1751227846662,-484.82,0.00019435,2]
[368603052,1751227846672,-942.9,0.00019435,2]
[368603053,1751227846681,-1268.33,0.00019435,2]
[368603054,1751227846691,-460.0,0.00019435,2]
[368603055,1751227846700,-688.52,0.00019435,2]
[368603056,1751227846709,-460.0,0.00019435,2]
[368603057,1751227846718,-460.0,0.00019435,2]
[368603058,1751227846727,-1363.28,0.00019435,2]
[368603059,1751227846737,-809.64,0.00019435,2]
[368603060,1751227846746,-640.55,0.00019435,2]
[368603061,1751227846755,-1187.21,0.00019435,2]
[368603062,1751227846764,-980.78,0.00019435,2]
[368603063,1751227846773,-460.0,0.00019435,2]
[368603064,1751227846782,-460.0,0.00019435,2]
[368603065,1751227846791,-4762.4,0.00019435,2]
[368603066,1751227846801,-460.0,0.00019435,2]
[368603067,1751227846811,-460.0,0.00019435,2]
[368603068,1751227846820,-460.0,0.00019435,2]
[368603069,1751227846830,-460.0,0.00019435,2]
[368603070,1751227846840,-239.6699206,0.00019435,2]
[368603071,1751227846849,-524.51021353,0.00019435,2]
[368603072,1751227846858,-460.0,0.00019435,2]
[368603073,1751227846868,-460.0,0.00019436,2]
[368603074,1751227846877,-460.0,0.00019436,2]
[368603075,1751227846887,-518.65,0.00019436,2]
[368603076,1751227846896,-614.5,0.00019436,2]
[368603077,1751227846905,-460.0,0.00019436,2]
[368603078,1751227846914,-460.0,0.00019436,2]
[368603079,1751227846925,-1043.13,0.00019436,2]
[368603080,1751227846934,-581.11,0.00019436,2]
[368603081,1751227846944,-460.0,0.00019436,2]
[368603082,1751227846954,-460.0,0.00019436,2]
[368603083,1751227846965,-727.91,0.00019436,2]
[368603084,1751227846974,-460.0,0.00019436,2]
[368603085,1751227846984,-1267.43,0.00019436,2]
[368603086,1751227846993,-460.0,0.00019436,2]
[368603087,1751227847002,-460.0,0.00019436,2]
[368603088,1751227847011,-460.0,0.00019436,2]
[368603089,1751227847020,-419.06159599,0.00019436,2]
[368603090,1751227847030,-460.0,0.00019436,2]
[368603091,1751227847039,-460.0,0.00019436,2]
[368603092,1751227847049,-651.75,0.00019437,2]
[368603093,1751227847058,-500.0,0.0001945,2]
[368603094,1751227847067,-782.17122709,0.00019476,2]
[368603095,1751227847077,-5888.0,0.00019495,2]
[368603096,1751227847086,-500.0,0.00019516,2]
[368603097,1751227847095,-500.0,0.00019516,2]
[368603098,1751227847104,-500.0,0.00019516,2]
[368603099,1751227847113,-500.0,0.00019532,2]
[368603100,1751227847122,-500.0,0.00019532,2]
[368603101,1751227847131,-500.0,0.00019532,2]
[368603102,1751227847140,-500.0,0.00019532,2]
[368603103,1751227847150,-267.06231988,0.00019532,2]
[368603104,1751227847160,-500.0,0.00019532,2]
[368603105,1751227847170,-153.0,0.00019534,2]
[368603106,1751227847179,-153.0,0.00019534,2]
[368603107,1751227847189,-153.0,0.00019534,2]
[368603108,1751227847199,-465.73136788,0.00019542,2]
[368603109,1751227847210,-151.0,0.000196,2]
[368603110,1751227847220,-960.0,0.00019612,2]
[368603111,1751227847229,-1000.0,0.00019612,2]
[368603112,1751227847239,-1000.0,0.00019612,2]
[368603113,1751227847248,-1000.90268572,0.00019612,2]
[368603114,1751227847257,-502.29311935,0.00019612,2]
[368603115,1751227847266,-1004.28252098,0.00019612,2]
[368603116,1751227847275,-1002.25919006,0.00019612,2]
[368603117,1751227847284,-1000.0,0.00019612,2]
[368603118,1751227847294,-500.0,0.00019612,2]
[368603119,1751227847303,-707.33486677,0.00019612,2]
[368603120,1751227847312,-525.07,0.00019707,2]
[368603121,1751227847321,-579.06,0.00019707,2]
[368603122,1751227847331,-2172.33,0.00019707,2]
[368603123,1751227847340,-460.0,0.00019707,2]
[368603124,1751227847349,-460.0,0.00019707,2]
[368603125,1751227847359,-460.0,0.00019708,2]
[368603126,1751227847369,-3161.16,0.00019708,2]
[368603127,1751227847378,-2985.09,0.00019708,2]
[368603128,1751227847388,-573.76,0.00019708,2]
[368603129,1751227847398,-649.15,0.00019708,2]
[368603130,1751227847407,-460.0,0.00019708,2]
[368603131,1751227847416,-4173.13,0.00019708,2]
[368603132,1751227847426,-3311.69,0.00019708,2]
[368603133,1751227847435,-3593.5,0.00019708,2]
[368603134,1751227847445,-494.09,0.00019708,2]
[368603135,1751227847454,-1876.75,0.00019708,2]
[368603136,1751227847465,-505.42,0.00019708,2]
[368603137,1751227847475,-545.51,0.00019708,2]
[368603138,1751227847484,-460.0,0.00019708,2]
[368603139,1751227847493,-460.0,0.00019708,2]
[368603140,1751227847503,-460.0,0.00019709,2]
[368603141,1751227847512,-599.43,0.00019709,2]
[368603142,1751227847522,-460.0,0.00019709,2]
[368603143,1751227847534,-502.48468,0.00019709,2]
[368603144,1751227847544,-502.48468,0.00019709,2]
[368603145,1751227847554,-1315.02,0.00019709,2]
[368603146,1751227847563,-460.0,0.00019709,2]
[368603147,1751227847572,-814.59,0.00019709,2]
[368603148,1751227847582,-1050.34,0.00019709,2]
[368603149,1751227847592,-460.0,0.00019709,2]
[368603150,1751227847601,-460.0,0.00019709,2]
[368603151,1751227847611,-460.0,0.00019709,2]
[368603152,1751227847620,-267.430784,0.00019709,2]
[368603153,1751227847630,-460.0,0.00019709,2]
[368603154,1751227847640,-460.0,0.00019709,2]
[368603155,1751227847649,-622.54,0.00019709,2]
[368603156,1751227847659,-615.91,0.00019709,2]
[368603157,1751227847668,-460.0,0.00019709,2]
[368603158,1751227847677,-622.23,0.00019709,2]
[368603159,1751227847687,-460.0,0.00019709,2]
[368603160,1751227847696,-460.0,0.00019709,2]
[368603161,1751227847705,-580.6,0.00019709,2]
[368603162,1751227847715,-1045.28,0.00019709,2]
[368603163,1751227847724,-966.73,0.00019709,2]
[368603164,1751227847733,-377.28972154,0.00019709,2]
[368603165,1751227847743,-151.0,0.00019709,2]
[368603166,1751227847752,-1694.13,0.00019709,2]
[368603167,1751227847762,-323.989201,0.00019709,2]
[368603168,1751227847771,-460.0,0.00019709,2]
[368603169,1751227847781,-151.0,0.00019709,2]
[368603170,1751227847791,-323.989201,0.00019709,2]
[368603171,1751227847800,-153.164602,0.00019709,2]
[368603172,1751227847810,-471.76,0.00019709,2]
[368603173,1751227847819,-4024.99,0.00019709,2]
[368603174,1751227847828,-151.0,0.00019709,2]
[368603175,1751227847837,-460.0,0.00019709,2]
[368603176,1751227847847,-484.82,0.00019709,2]
[368603177,1751227847856,-942.9,0.00019709,2]
[368603178,1751227847865,-1268.33,0.00019709,2]
[368603179,1751227847874,-460.0,0.00019709,2]
[368603180,1751227847883,-688.52,0.00019709,2]
[368603181,1751227847892,-460.0,0.00019709,2]
[368603182,1751227847902,-1363.28,0.00019709,2]
[368603183,1751227847911,-809.64,0.00019709,2]
[368603184,1751227847920,-640.55,0.00019709,2]
[368603185,1751227847929,-1187.21,0.00019709,2]
[368603186,1751227847939,-980.78,0.00019709,2]
[368603187,1751227847948,-460.0,0.00019709,2]
[368603188,1751227847957,-4762.4,0.00019709,2]
[368603189,1751227847967,-460.0,0.00019709,2]
[368603190,1751227847976,-460.0,0.00019709,2]
[368603191,1751227847985,-460.0,0.00019709,2]
[368603192,1751227847995,-460.0,0.00019709,2]
[368603193,1751227848004,-460.0,0.00019709,2]
[368603194,1751227848014,-460.0,0.0001971,2]
[368603195,1751227848023,-460.0,0.0001971,2]
[368603196,1751227848033,-518.65,0.0001971,2]
[368603197,1751227848042,-614.5,0.0001971,2]
[368603198,1751227848053,-460.0,0.0001971,2]
[368603199,1751227848063,-1043.13,0.0001971,2]
[368603200,1751227848072,-581.11,0.0001971,2]
[368603201,1751227848082,-460.0,0.0001971,2]
[368603202,1751227848091,-727.91,0.0001971,2]
[368603203,1751227848101,-460.0,0.0001971,2]
[368603204,1751227848111,-1267.43,0.0001971,2]
[368603205,1751227848121,-460.0,0.0001971,2]
[368603206,1751227848131,-460.0,0.0001971,2]
[368603207,1751227848140,-460.0,0.0001971,2]
[368603208,1751227848150,-507.78,0.0001971,2]
[368603209,1751227848160,-651.75,0.00019711,2]
[368603210,1751227848170,-1000.0,0.00019759,2]
[368603211,1751227848180,-500.0,0.00019759,2]
[368603212,1751227848189,-500.68364037,0.00019762,2]
[368603213,1751227848199,-1000.0,0.00019762,2]
[368603214,1751227848208,-500.0,0.00019762,2]
[368603215,1751227848218,-1000.0,0.00019775,2]
[368603216,1751227848227,-274.88192691,0.00019775,2]
[368603217,1751227848237,-1000.0,0.00019775,2]
[368603218,1751227848246,-1958.56518753,0.00019783,2]
[368603219,1751227848256,-151.0,0.000198,2]
[368603220,1751227848265,-1000.0,0.00019817,2]
[368603221,1751227848275,-1000.0,0.00019817,2]
[368603222,1751227848285,-500.0,0.00019817,2]
[368603223,1751227848295,-5888.0,0.00019825,2]
[368603224,1751227848304,-5000.0,0.00019859,2]
[368603225,1751227848314,-586.29415614,0.0001986,2]
[368603226,1751227848323,-151.0,0.00019861,2]
[368603227,1751227848333,-151.0,0.00019861,2]
[368603228,1751227848342,-186.384044,0.00019861,2]
[368603229,1751227848352,-186.384044,0.00019861,2]
[368603230,1751227848363,-151.0,0.00019861,2]
[368603231,1751227848373,-2936.09252431,0.00019863,2]
[368603232,1751227848383,-430.50900453,0.00019865,2]
[368603233,1751227848393,-1000.0,0.00019865,2]
[368603234,1751227848403,-428.52617537,0.00019865,2]
[368603235,1751227848413,-501.72407384,0.00019865,2]
[368603236,1751227848423,-1000.0,0.00019865,2]
[368603237,1751227848433,-1000.0,0.00019915,2]
[368603238,1751227848442,-1000.0,0.00019915,2]
[368603239,1751227848452,-1000.0,0.00019915,2]
[368603240,1751227848462,-441.5,0.00019973,3]
[368603241,1751227848472,-525.07,0.00019981,2]
[368603242,1751227848482,-579.06,0.00019981,2]
[368603243,1751227848492,-2172.33,0.00019981,2]
[368603244,1751227848502,-460.0,0.00019981,2]
[368603245,1751227848511,-460.0,0.00019981,2]
[368603246,1751227848521,-460.0,0.00019982,2]
[368603247,1751227848533,-3161.16,0.00019982,2]
[368603248,1751227848545,-2985.09,0.00019982,2]
[368603249,1751227848555,-573.76,0.00019982,2]
[368603250,1751227848565,-649.15,0.00019982,2]
[368603251,1751227848575,-460.0,0.00019982,2]
[368603252,1751227848584,-4173.13,0.00019982,2]
[368603253,1751227848594,-3311.69,0.00019982,2]
[368603254,1751227848604,-3593.5,0.00019982,2]
[368603255,1751227848614,-494.09,0.00019982,2]
[368603256,1751227848623,-1876.75,0.00019982,2]
[368603257,1751227848633,-505.42,0.00019982,2]
[368603258,1751227848643,-545.51,0.00019982,2]
[368603259,1751227848653,-460.0,0.00019982,2]
[368603260,1751227848663,-460.0,0.00019982,2]
[368603261,1751227848673,-460.0,0.00019983,2]
[368603262,1751227848683,-599.43,0.00019983,2]
[368603263,1751227848693,-216.4,0.00019983,2]
[368603264,1751227848703,-1315.02,0.00019983,2]
[368603265,1751227848712,-460.0,0.00019983,2]
[368603266,1751227848722,-814.59,0.00019983,2]
[368603267,1751227848731,-1050.34,0.00019983,2]
[368603268,1751227848741,-460.0,0.00019983,2]
[368603269,1751227848750,-460.0,0.00019983,2]
[368603270,1751227848760,-460.0,0.00019983,2]
[368603271,1751227848770,-460.0,0.00019983,2]
[368603272,1751227848780,-460.0,0.00019983,2]
[368603273,1751227848790,-622.54,0.00019983,2]
[368603274,1751227848799,-615.91,0.00019983,2]
[368603275,1751227848809,-460.0,0.00019983,2]
[368603276,1751227848819,-622.23,0.00019983,2]
[368603277,1751227848829,-460.0,0.00019983,2]
[368603278,1751227848838,-580.6,0.00019983,2]
[368603279,1751227848848,-1045.28,0.00019983,2]
[368603280,1751227848857,-966.73,0.00019983,2]
[368603281,1751227848868,-1694.13,0.00019983,2]
[368603282,1751227848877,-460.0,0.00019983,2]
[368603283,1751227848887,-471.76,0.00019983,2]
[368603284,1751227848897,-4024.99,0.00019983,2]
[368603285,1751227848907,-460.0,0.00019983,2]
[368603286,1751227849048,-484.82,0.00019983,2]
[368603287,1751227849058,-942.9,0.00019983,2]
[368603288,1751227849068,-1268.33,0.00019983,2]
[368603289,1751227849078,-460.0,0.00019983,2]
[368603290,1751227849087,-688.52,0.00019983,2]
[368603291,1751227849097,-460.0,0.00019983,2]
[368603292,1751227849106,-1363.28,0.00019983,2]
[368603293,1751227849116,-809.64,0.00019983,2]
[368603294,1751227849125,-640.55,0.00019983,2]
[368603295,1751227849136,-1187.21,0.00019983,2]
[368603296,1751227849145,-980.78,0.00019983,2]
[368603297,1751227849155,-460.0,0.00019983,2]
[368603298,1751227849164,-4762.4,0.00019983,2]
[368603299,1751227849174,-460.0,0.00019983,2]
[368603300,1751227849184,-460.0,0.00019983,2]
[368603301,1751227849194,-460.0,0.00019983,2]
[368603302,1751227849203,-460.0,0.00019983,2]
[368603303,1751227849212,-460.0,0.00019983,2]
[368603304,1751227849222,-460.0,0.00019984,2]
[368603305,1751227849231,-460.0,0.00019984,2]
[368603306,1751227849240,-518.65,0.00019984,2]
[368603307,1751227849250,-614.5,0.00019984,2]
[368603308,1751227849259,-1043.13,0.00019984,2]
[368603309,1751227849269,-581.11,0.00019984,2]
[368603310,1751227849278,-460.0,0.00019984,2]
[368603311,1751227849288,-727.91,0.00019984,2]
[368603312,1751227849298,-504.37,0.00019984,2]